Cogmind - Beta 15 @@@ ROGUE MODE // 2025.09.19 @ 16:18:10 Player: Petvaria Result: Destroyed by B-75 Beast with Magnetic Acceleration Cannon Performance ------------- Evolutions (5) 2500 Regions Visited (6) 1200 Robots Destroyed (28) 140 Value Destroyed (1099) 1099 Prototype IDs (1) 20 Alien Tech Used (0) 0 Bonus (592) 592 TOTAL SCORE: 5551 Bonus ------- Follower Combat Kills 292 Registered with UFD 300 Cogmind --------- Core Integrity 0/1000 Matter 285/300 Energy 30/100 System Corruption 0% Temperature Cool (21) Movement Walking (260) Ox2 Location -5/Extension Parts ------- > --- POWER (1) -------- (None) > --- PROPULSION (5) --- Flexi-carbon Leg > --- UTILITY (9) ------ High-capacity Storage Unit Advanced Targeting Computer Advanced Melee Analysis Suite Improved Weapon Shielding Improved Hacking Suite > --- WEAPON (2) ------- Companion Sword > --- INVENTORY (20) --- Light Angular Momentum Engine Neutrino Core Light Treads Spiked Treads Flexi-carbon Leg Improved Sensor Array Improved Signal Interpreter Improved Weapon Shielding Improved Hardlight Generator Subdweller Laser CPS Tube (2) Peak State ------------ > --- POWER ------------ Neutrino Core > --- PROPULSION ------- Improved Carbon-fiber Leg Medium Armored Exoskeleton Myomer Leg > --- UTILITY ---------- High-capacity Storage Unit Deep Structural Scanner Advanced Targeting Computer Advanced Targeting Computer Advanced Melee Analysis Suite Improved Weapon Shielding Improved Medium Armor Plating Remote Force Field Improved Hacking Suite > --- WEAPON ----------- Companion Sword > --- INVENTORY -------- Light Angular Momentum Engine Light Angular Momentum Engine Neutrino Core Neutrino Core Light Treads Spiked Treads Improved Aluminum Leg Carbon-fiber Leg Carbon-fiber Leg Carbon-fiber Leg Carbon-fiber Leg Improved Carbon-fiber Leg Flexi-carbon Leg Flexi-carbon Leg Improved Sensor Array Improved Signal Interpreter Improved Weapon Shielding Improved Hardlight Generator Subdweller Laser CPS Tube [Rating: 82] Favorites ----------- Power Ion Engine Engine Ion Engine Power Core Neutrino Core Propulsion Light Treads Treads Light Treads Leg Carbon-fiber Leg Wheel Compact Wheel Utility High-capacity Storage Unit Device Deep Structural Scanner Storage High-capacity Storage Unit Processor Advanced Targeting Computer Hackware Improved Hacking Suite Protection Improved Weapon Shielding Weapon Medium Laser Energy Gun Medium Laser Ballistic Gun Heavy Assault Rifle Impact Weapon Hammer Slashing Weapon Companion Sword Build | -11 -10 -10 -7 -7 -5 -5 ------- Run | Yrd Mat Sub Rec Scr Fac Ext Slots Evolved 10 | . . . . . 10 . Power . | . . . . . . . Propulsion 3 | . . . . . 3 . Utility 7 | . . . . . 7 . Weapon . | . . . . . . . Parts Attached 50 | 6 5 . 1 6 14 18 Power 9 | 1 . . . 1 2 5 Engine 5 | 1 . . . 1 2 1 Core 4 | . . . . . . 4 Reactor . | . . . . . . . Propulsion 20 | 2 . . . 3 5 10 Treads 5 | 2 . . . 1 2 . Leg 13 | . . . . . 3 10 Wheel 2 | . . . . 2 . . Hover . | . . . . . . . Flight . | . . . . . . . Utility 13 | 1 2 . . 1 6 3 Device 2 | . . . . . 1 1 Storage 2 | 1 1 . . . . . Processor 5 | . 1 . . . 4 . Hackware 1 | . . . . . . 1 Protection 3 | . . . . 1 1 1 Artifact . | . . . . . . . Weapon 8 | 2 3 . 1 1 1 . Energy Gun 3 | 2 . . 1 . . . Energy Cannon . | . . . . . . . Ballistic Gun 3 | . 2 . . 1 . . Ballistic Cannon . | . . . . . . . Launcher . | . . . . . . . Special Weapon . | . . . . . . . Impact Weapon 1 | . 1 . . . . . Slashing Weapon 1 | . . . . . 1 . Piercing Weapon . | . . . . . . . Special Melee Weapon . | . . . . . . . Unidentified Prototypes 1 | . . . . . 1 . Parts Lost 23 | . . . . . 5 18 Power 5 | . . . . . 2 3 Propulsion 12 | . . . . . 2 10 Utility 6 | . . . . . 1 5 Weapon . | . . . . . . . Highest Loss Streak 16 | . . . . . 3 16 To Critical Strikes 1 | . . . . . . 1 Average Backups 16 | 1 8 12 17 18 17 19 Power 2 | . 1 1 2 2 2 3 Propulsion 6 | . 2 2 4 6 7 9 Utility 2 | . . 1 3 3 3 4 Weapon 4 | . 5 7 8 6 3 1 Tool/Special . | . . . . . . . Unused Backups 17 | . . . . 5 1 11 Power 4 | . . . . 1 . 3 Propulsion 3 | . . . . 1 1 1 Utility 6 | . . . . 2 . 4 Weapon 3 | . . . . 1 . 2 Tool/Special 1 | . . . . . . 1 Average Slot Usage (%) 89 | . 98 100 100 100 73 75 Engine 8 | . 14 14 14 14 4 . Core 1 | . . . . . . 4 Treads 16 | . 28 28 28 22 12 . Leg 5 | . . . . . 2 16 Wheel 2 | . . . . 5 9 . Device 2 | . . . . . 3 8 Storage 10 | . 14 14 14 14 5 5 Processor 14 | . 13 14 14 13 14 16 Protection 3 | . . . . . 8 9 Energy Gun 8 | . 12 13 14 14 2 . Ballistic Gun 8 | . 13 14 14 14 2 . Slashing Weapon 1 | . . . . . 2 5 Peak Build Rating 82 | 6 10 12 12 18 62 82 Average Rating 33 | 3 9 10 12 13 43 72 On Entrance 17 | . 6 10 12 12 18 62 Naked Turns . | . . . . . . . Heaviest Build 76 | 14 50 50 50 52 61 76 Greatest Support 93 | 40 40 40 40 43 80 93 Greatest Overweight (x) 3 | . 1 1 1 1 3 1 Average Overweight (x) . | . . 1 1 1 1 . Largest Inventory Capacity 20 | 8 20 20 20 20 20 20 Average Capacity 19 | 6 17 20 20 20 20 20 Most Carried 20 | 4 9 17 17 20 20 20 Average Carried 16 | 2 8 12 17 18 18 19 Final Capacity 20 | 8 20 20 20 20 20 20 Final Carried 20 | 4 9 17 17 20 17 11 Class Distribution -------------------- 79% | Mutant 20% | Commander-Mutant Dominant Class ---------------- Mutant | -10/Materials Mutant | -10/Subcaves Mutant | -7/Recycling Mutant | -7/Scraptown Mutant | -5/Factory Commander-Mutant | -5/Extension Resources | -11 -10 -10 -7 -7 -5 -5 ----------- Run | Yrd Mat Sub Rec Scr Fac Ext Matter Collected 846 | 205 87 48 71 13 242 180 Remotely . | . . . . . . . Salvage Created 1386 | . 116 61 71 . 711 427 Parts 66 | . 4 9 3 . 35 15 Haulers Intercepted . | . . . . . . . Recyclers Shooed 2 | . . . . . 2 . Parts Field Recycled . | . . . . . . . Retrieved Matter . | . . . . . . . Parts Self-Destructed . | . . . . . . . Prevented . | . . . . . . . Kills | -11 -10 -10 -7 -7 -5 -5 ------- Run | Yrd Mat Sub Rec Scr Fac Ext Combat Hostiles Destroyed 21 | . 2 3 1 . 8 7 Melee 14 | . . 2 . . 5 7 Guns 5 | . 2 1 . . 2 . Classes Destroyed 9 | . 2 2 1 . 3 1 Worker 3 | . . . . . 3 . Builder 2 | . 1 . . . 1 . Watcher 2 | . . . . . 2 . Swarmer 2 | . . 2 . . . . Grunt 11 | . 2 . . . 5 4 Duelist 1 | . . . . . 1 . Sentry 5 | . . . 1 . 2 2 Behemoth 1 | . . . . . . 1 Subdweller 1 | . . 1 . . . . Best Kill Streak 3 | . 2 2 1 . 3 2 Combat Bots Only 3 | . 2 2 1 . 3 2 Max Kills in Single Turn 1 | . 1 1 1 . 1 1 Gunslinging . | . . . . . . . Exploded . | . . . . . . . Melee 1 | . . 1 . . 1 1 Uniques/NPCs Destroyed . | . . . . . . . Combat | -11 -10 -10 -7 -7 -5 -5 -------- Run | Yrd Mat Sub Rec Scr Fac Ext Hostile Shots Fired 320 | . 6 6 45 . 78 185 Missed 70 | . 2 1 16 . 17 34 Hits 250 | . 4 5 29 . 61 151 Melee 2 | . . . . . 2 . Projectile 248 | . 4 5 29 . 59 151 Critical Strikes 16 | . . . . . 4 12 Damage Taken 5236 | . 61 51 225 . 1273 3626 Core 1061 | . . 6 33 . 147 875 Absorbed by Shields 68 | . . . . . . 68 Redirected to Shielding 51 | . . . . . 14 37 Core Remaining (%) 92 | 100 . . . 84 . . Volleys Fired 32 | . 5 1 7 . 19 . Largest 2 | . 2 2 2 . 2 . Hottest 73 | . 73 73 73 . 73 . Shots Fired 63 | . 10 1 14 . 38 . Gun 63 | . 10 1 14 . 38 . Cannon . | . . . . . . . Launcher . | . . . . . . . Special . | . . . . . . . Kinetic 32 | . 5 1 7 . 19 . Thermal 31 | . 5 . 7 . 19 . Explosive . | . . . . . . . Electromagnetic . | . . . . . . . Robot Hit Streak 13 | . 7 2 13 . 8 . Robot Miss Streak 3 | . 1 . 1 . 3 . Penetration Max . | . . . . . . . Secondary Targets 3 | . . . . . 3 . Max Gunslinging Chain 1 | . . . . . 1 . Shots Hit Robots 122 | . 9 3 13 . 49 48 Core Hits 52 | . 4 3 4 . 28 13 Critical Kills . | . . . . . . . Critical Parts Destroyed . | . . . . . . . Critical Strikes 6 | . . . 1 . 3 2 Burn 4 | . . . 1 . 3 . Melee Attacks 102 | . 9 8 . . 28 57 Impact 17 | . 9 8 . . . . Slashing 85 | . . . . . 28 57 Piercing . | . . . . . . . Sneak Attacks 5 | . 1 . . . 3 1 Combat Hostiles 1 | . . . . . . 1 Follow-up Attacks 1 | . . . . . 1 . Damage Inflicted 3862 | . 151 61 174 . 1438 2038 Guns 668 | . 113 15 174 . 366 . Cannons . | . . . . . . . Explosions . | . . . . . . . Melee 3194 | . 38 46 . . 1072 2038 Ramming . | . . . . . . . Kinetic 364 | . 74 15 86 . 189 . Thermal 304 | . 39 . 88 . 177 . Explosive . | . . . . . . . Electromagnetic . | . . . . . . . Impact 84 | . 38 46 . . . . Slashing 3110 | . . . . . 1072 2038 Piercing . | . . . . . . . Highest Corruption 1 | . 1 1 1 . . . Average Corruption 1 | . 1 1 1 . . . Corruption Purged . | . . . . . . . Corruption Blocked . | . . . . . . . Effects 8 | . 1 6 1 . . . Message Errors 2 | . . 2 . . . . Matter Fused 1 | . . 1 . . . . Heat Flow Errors 1 | . . 1 . . . . Data Loss (minor) 1 | . . . 1 . . . Data Loss (major) 2 | . 1 1 . . . . Weapon Failures 1 | . . 1 . . . . Overload Shots . | . . . . . . . Overflow Damage 83 | . 18 . . . 63 2 Projectiles . | . . . . . . . Explosions . | . . . . . . . Melee 83 | . 18 . . . 63 2 Knockbacks . | . . . . . . . Impact . | . . . . . . . Kinetic . | . . . . . . . Secondary . | . . . . . . . Self-Inflicted Damage . | . . . . . . . Shots . | . . . . . . . Rammed 1 | . . 1 . . . . Targets Rammed 1 | . . 1 . . . . Kicked . | . . . . . . . Crushed . | . . . . . . . Highest Temperature 432 | . 66 92 120 . 16 432 Average Temperature 108 | . 31 53 69 . 8 218 Received Heat Transfer 2170 | . 33 . 72 . 504 1561 Effects 2 | . . . . . . 2 Short Circuit 2 | . . . . . . 2 Siege Activations . | . . . . . . . Martial Activations . | . . . . . . . Shielding Activations . | . . . . . . . Robots Disrupted . | . . . . . . . Combat Hostiles . | . . . . . . . Robots Corrupted 1 | . 1 . . . . . Combat Hostiles . | . . . . . . . Parts Fried 2 | . 2 . . . . . Impact Corruptions 1 | . 1 . . . . . Robots Melted 2 | . . . 1 . 1 . Combat Hostiles 2 | . . . 1 . 1 . Parts Melted 5 | . . . 2 . 2 1 Heat Transferred 1184 | . 111 . 333 . 740 . Parts Sabotaged . | . . . . . . . Parts Stolen . | . . . . . . . Parts Stripped . | . . . . . . . Power Chain Reactions . | . . . . . . . Alert | -11 -10 -10 -7 -7 -5 -5 ------- Run | Yrd Mat Sub Rec Scr Fac Ext Maximum Alert Level . | . . . . . . . Low Security (%) 100 | 100 100 . 100 . 100 100 Level 1 . | . . . . . . . Level 2 . | . . . . . . . Level 3 . | . . . . . . . Level 4 . | . . . . . . . Level 5 . | . . . . . . . High Security . | . . . . . . . Max Security . | . . . . . . . Peak Influence 122 | . 50 . 40 . 60 122 Initial 40 | . . . 40 . . 14 Average 18 | . 6 . 7 . 22 24 Influence Increases 804 | . 57 85 20 . 247 395 Destroy 0b10 Robot/C 540 | . 40 40 20 . 160 280 Destroy 0b10 Robot/NC 45 | . 5 . . . 30 10 Destroy Leader 56 | . 10 . . . 34 12 Allied During Kill 83 | . . . . . . 83 Disable Machine 15 | . . . . . 15 . Destroy Structure 20 | . 2 . . . 8 10 Lose Combat Pursuer 45 | . . 45 . . . . Influence Decreases 804 | . 57 . 105 . 216 426 Entered New Map 62 | . . . 45 . . 17 Time Decay 595 | . 57 . 60 . 177 301 Lost Part 73 | . . . . . 39 34 Lost Ally 74 | . . . . . . 74 Squads Dispatched 2 | . . . . . 1 1 Investigation 1 | . . . . . . 1 Extermination . | . . . . . . . Reinforcement 1 | . . . . . 1 . Assault . | . . . . . . . Garrison . | . . . . . . . Intercept . | . . . . . . . Searches Triggered . | . . . . . . . Construction Impeded . | . . . . . . . Haulers Reinforced . | . . . . . . . Active Scanning Responses . | . . . . . . . Cargo Convoy Interrupts . | . . . . . . . Stealth | -11 -10 -10 -7 -7 -5 -5 --------- Run | Yrd Mat Sub Rec Scr Fac Ext Distress Signals 4 | . . . . . 3 1 Communications Jammed . | . . . . . . . Distress Signals . | . . . . . . . Times Spotted 40 | . 4 5 1 . 15 15 Peak Tracking Total 5 | . 2 4 1 . 3 5 Tactical Retreats 1 | . . 1 . . . . Traps | -11 -10 -10 -7 -7 -5 -5 ------- Run | Yrd Mat Sub Rec Scr Fac Ext Traps Triggered 3 | . 1 . . . 2 . Indirectly . | . . . . . . . Trap Hack Attempts . | . . . . . . . Triggered . | . . . . . . . Disarmed . | . . . . . . . Reprogrammed . | . . . . . . . Reused . | . . . . . . . Traps Extracted . | . . . . . . . Installed . | . . . . . . . Triggered . | . . . . . . . Machines | -11 -10 -10 -7 -7 -5 -5 ---------- Run | Yrd Mat Sub Rec Scr Fac Ext Machines Disabled 1 | . . . . . 1 . Max in Single Turn 1 | . . . . . 1 . Machines Repaired . | . . . . . . . Machines Dismantled . | . . . . . . . Machines Sabotaged . | . . . . . . . Overloaded Fab Kills . | . . . . . . . Hacking | -11 -10 -10 -7 -7 -5 -5 --------- Run | Yrd Mat Sub Rec Scr Fac Ext Machines Accessed 6 | . . . . 4 1 1 Terminals 2 | . . . . . 1 1 Fabricators . | . . . . . . . Repair Stations . | . . . . . . . Recycling Units . | . . . . . . . Scanalyzers . | . . . . . . . Garrison Access . | . . . . . . . Total Hacks 30 | . . . . 26 1 3 Successful 27 | . . . . 26 1 . Failed 3 | . . . . . . 3 Catastrophic . | . . . . . . . Database Lockouts . | . . . . . . . Manual . | . . . . . . . Terminals 4 | . . . . . 1 3 Fabricators . | . . . . . . . Repair Stations . | . . . . . . . Recycling Units . | . . . . . . . Scanalyzers . | . . . . . . . Garrison Access . | . . . . . . . Terminal Hacks 27 | . . . . 26 1 . Record 21 | . . . . 21 . . Robot Analysis 4 | . . . . 4 . . Open Door 2 | . . . . 1 1 . Fabricator Hacks . | . . . . . . . Repair Station Hacks . | . . . . . . . Recycling Unit Hacks . | . . . . . . . Scanalyzer . | . . . . . . . Garrison Access Hacks . | . . . . . . . Unauthorized Hacks . | . . . . . . . Terminals . | . . . . . . . Fabricators . | . . . . . . . Repair Stations . | . . . . . . . Recycling Units . | . . . . . . . Scanalyzers . | . . . . . . . Garrison Access . | . . . . . . . Data Cores Recovered . | . . . . . . . Used . | . . . . . . . Hacking Detections 1 | . . . . . . 1 Full Trace Events 1 | . . . . . . 1 Feedback Events . | . . . . . . . Feedback Blocked . | . . . . . . . Robot Schematics Acquired . | . . . . . . . Robots Built . | . . . . . . . Authchips . | . . . . . . . Time . | . . . . . . . Total Robot Build Rating . | . . . . . . . Part Schematics Acquired . | . . . . . . . Parts Built . | . . . . . . . Authchips . | . . . . . . . Time . | . . . . . . . Total Part Build Rating . | . . . . . . . Parts Repaired . | . . . . . . . Time . | . . . . . . . Parts Recycled . | . . . . . . . Recycled Matter . | . . . . . . . Retrieved Matter . | . . . . . . . Retrieved Components . | . . . . . . . Parts Scanalyzed . | . . . . . . . Part Schematics Acquired . | . . . . . . . Parts Damaged . | . . . . . . . Bothacking | -11 -10 -10 -7 -7 -5 -5 ------------ Run | Yrd Mat Sub Rec Scr Fac Ext Used RIF Installer . | . . . . . . . Robots Hacked . | . . . . . . . Non-combat . | . . . . . . . Combat . | . . . . . . . Robot Hacks Applied . | . . . . . . . Relay Couplers Released . | . . . . . . . Fabnet Peak Effective % . | . . . . . . . Robots Rewired 14 | . . . . . . 14 Allies Hacked . | . . . . . . . Hacks Repelled . | . . . . . . . Allies | -11 -10 -10 -7 -7 -5 -5 -------- Run | Yrd Mat Sub Rec Scr Fac Ext Total Allies 14 | . . . . . . 14 Largest Group 9 | . . . . . . 9 Highest-Rated Group 259 | . . . . . . 259 Highest-Rated Ally 39 | . . . . . . 39 Total Orders . | . . . . . . . Ally Attacks 101 | . . . . . . 101 Total Damage 1991 | . . . . . . 1991 Kills 10 | . . . . . . 10 Allies Corrupted . | . . . . . . . Allies Melted . | . . . . . . . Intel | -11 -10 -10 -7 -7 -5 -5 ------- Run | Yrd Mat Sub Rec Scr Fac Ext Active Infowar (turns) 1766 | . . . . . 374 1392 Structural 1766 | . . . . . 374 1392 Robot Analysis Total 4 | . . . . 4 . . Derelict Logs Recovered 3 | . . . . 3 . . Drone Launches . | . . . . . . . Drone Recoveries . | . . . . . . . Exploration | -11 -10 -10 -7 -7 -5 -5 ------------- Run | Yrd Mat Sub Rec Scr Fac Ext Turns Passed 4882 | 95 420 674 316 1425 518 1434 Spaces Moved 2365 | 61 151 266 123 725 253 786 Core 16 | 16 . . . . . . Treads 1047 | 45 151 266 123 462 . . Legs 829 | . . . . . 43 786 Wheels 473 | . . . . 263 210 . Hover . | . . . . . . . Flight . | . . . . . . . Fastest Speed 50 | 50 160 240 240 110 110 120 Average Speed 171 | 131 220 240 240 192 123 126 Slowest Speed 250 | 160 240 240 240 240 145 250 Overloaded Moves . | . . . . . . . Propulsion Burnouts . | . . . . . . . Robots Hopped . | . . . . . . . Potential Cave-ins . | . . . . . . . Cave-ins Triggered . | . . . . . . . Exploration Rate (%) 32 | 4 32 30 34 67 10 48 Regions Visited 6 Branch Regions 4 Pre-discovered Areas 5 | . . . . 5 . . Known Exits Taken 2 | . . . . 1 1 . Unknown Exits Taken 4 | 1 1 1 1 . . . Scrap Searched 3 | . . . . 3 . . Spaces Dug 7 | . 2 1 . . 4 . Terrain Destroyed 7 | . 2 1 . . 4 . Melee 7 | . 2 1 . . 4 . Projectile . | . . . . . . . AOE . | . . . . . . . Terrain Rammed . | . . . . . . . Walls Destroyed . | . . . . . . . Machines Disabled . | . . . . . . . Actions | -11 -10 -10 -7 -7 -5 -5 --------- Run | Yrd Mat Sub Rec Scr Fac Ext Total 2986 | 76 209 285 130 754 382 1150 Wait 223 | . 29 1 . . 36 157 Move 2360 | 60 150 266 122 724 252 786 Hop . | . . . . . . . Pick Up 54 | 10 5 8 . 13 9 9 Fast Attach 7 | . 1 . . . 3 3 Attach 29 | 6 . . . 1 12 10 Detach 2 | . . . . . 2 . Swap 23 | . 9 1 1 6 1 5 Drop 25 | . 1 . . 10 5 9 Fire 32 | . 5 1 7 . 19 . Melee 98 | . 9 8 . . 27 54 Ram . | . . . . . . . Kick . | . . . . . . . Crush . | . . . . . . . Escape Stasis 16 | . . . . . 16 . Rewire 117 | . . . . . . 117 Trap . | . . . . . . . Miscellaneous . | . . . . . . . Route ------- -11/Scrapyard -10/Materials (discovered 4 exits: [*Mat x2] / [*Min] / [*Sub]) -10/Subcaves -7/Recycling -7/Scraptown -5/Factory (discovered 7 exits: *Fac x3 / *Upp x2 / *Ext x2) -5/Extension (discovered 1 exit: Fac) History --------- Turn | Location | Event 3 | -11/Scrapyard | Discovered new exit (range 16) 96 | -11/Scrapyard | Entered Materials 297 | -10/Materials | Discovered new exit (range 3) 300 | -10/Materials | Build established: Mutant 321 | -10/Materials | Discovered new exit (range 16) 407 | -10/Materials | Discovered new exit (range 16) 508 | -10/Materials | Discovered new exit (range 2) 516 | -10/Materials | Entered Subcaves 841 | -10/Subcaves | Shifting Twisted Machinery released Mak. Light Armor Plating 851 | -10/Subcaves | Shifting Twisted Machinery released Sub. Power Source 1058 | -10/Subcaves | Visited triangular shrine 1072 | -10/Subcaves | Found Prototype Device 1180 | -10/Subcaves | Discovered new exit (range 3) 1190 | -10/Subcaves | Entered Recycling 1446 | -7/Recycling | Scanned before Scraplab entrance 1479 | -7/Recycling | Entered Scraplab 1499 | -7/Recycling | Discovered new exit (range 4) 1506 | -7/Recycling | Entered Scraptown 1506 | -7/Scraptown | System corruption cleaned by C-Scrubber 1677 | -7/Scraptown | Delivered Prototype Device to T0-NE2 in exchange for information 1967 | -7/Scraptown | Scanned Subdweller tech in exchange for log data 1972 | -7/Scraptown | Learned location of Armory (-4) 1974 | -7/Scraptown | Learned Research stockpile data 1976 | -7/Scraptown | Learned Factory garrison access intel 2120 | -7/Scraptown | Visited Bundlers 2306 | -7/Scraptown | Visited UFD Registry 2306 | -7/Scraptown | Registered with UFD as "Cargodriver" 2359 | -7/Scraptown | Visited Junk Repository 2516 | -7/Scraptown | Visited Analyses Database 2566 | -7/Scraptown | Visited Scrapoid Pod Storage 2598 | -7/Scraptown | Visited Science Testing Area 2622 | -7/Scraptown | Visited Cartography Club 2694 | -7/Scraptown | Found Unknown Device 2704 | -7/Scraptown | Learned location of Cetus (-5) 2704 | -7/Scraptown | Learned location of Hub_04(d) (-5) 2704 | -7/Scraptown | Learned 8 Factory zone layouts 2704 | -7/Scraptown | Learned 16 Factory zone layouts 2704 | -7/Scraptown | Learned 8 Research zone layouts 2704 | -7/Scraptown | Learned 4 Access zone layouts 2704 | -7/Scraptown | Learned 12 Research zone layouts 2704 | -7/Scraptown | Learned 8 Access zone layouts 2704 | -7/Scraptown | Learned 8 Upper Caves zone layouts 2704 | -7/Scraptown | Learned 12 Proximity Caves zone layouts 2704 | -7/Scraptown | Learned Factory emergency access door positions 2704 | -7/Scraptown | Learned location of 3 exits from Factory 2704 | -7/Scraptown | Learned location of 2 exits from Upper Caves 2704 | -7/Scraptown | Identified exit to Factory 2737 | -7/Scraptown | Visited Abandonware Association 2746 | -7/Scraptown | Learned abandonware demo "OVRCLOCK.EXE" 2751 | -7/Scraptown | Learned abandonware demo "KABOOM.EXE" 2751 | -7/Scraptown | Learned abandonware demo "POISON.EXE" 2777 | -7/Scraptown | Visited Sword Containment 2817 | -7/Scraptown | Visited Research Penetration Think Tank 2931 | -7/Scraptown | Entered Factory 2931 | -5/Factory | Evolved 10 slots: Propulsion x3, Utility x7 2932 | -5/Factory | Identified exit to Extension 2933 | -5/Factory | Identified exit to Upper Caves 2933 | -5/Factory | Identified exit to Factory 2936 | -5/Factory | Loaded intel: 3 garrison access locations 3075 | -5/Factory | Identified Deep Structural Scanner 3156 | -5/Factory | Discovered exit to Upper Caves (range 8) 3370 | -5/Factory | Lost 3 parts (2n1u) 3449 | -5/Factory | Entered Extension 4151 | -5/Extension | Build established: Commander-Mutant 4397 | -5/Extension | Lost 5 allies 4805 | -5/Extension | Spotted B-75 Beast 4819 | -5/Extension | Spotted B-75 Beast 4825 | -5/Extension | Discovered exit to Factory (range 13) 4840 | -5/Extension | Destroyed B-75 Beast 4847 | -5/Extension | Core integrity fell below 50% 4869 | -5/Extension | Lost 7 allies 4869 | -5/Extension | Core integrity fell below 20% 4883 | -5/Extension | Destroyed by B-75 Beast with Magnetic Acceleration Cannon Last Messages --------------- Penetrated by Slug. Knocked back. Penetrated by Slug. HV Slug penetrates B-75 Beast. B-75 Beast suffers critical hit (Destroy). Slug penetrates K-01 Serf. K-01 Serf destroyed. Destroyed Med. Reflective Plating. Lgt. Angular Momentum Engine destroyed. Carbon-fiber Leg destroyed. Penetrated by Slug. Carbon-fiber Leg destroyed. Knocked back. Penetrated by Slug. Carbon-fiber Leg destroyed. K-01 Serf destroyed. HV Slug penetrates B-75 Beast. Slug penetrates Y-64 Sentinel. Slug penetrates Wall. Imp. Aluminum Leg destroyed. Map ----- +----------------------------------------------------+ | ####### * ########## ####???????????????? | | ####### ########## ####???????????????? | | ####### *=/+ ####???????????????? | | #######[ !=% ########## ####???????????????? | | ??##### [= ########## ####???????????????? | | ??##################### ####???????????????? | | ??########### ######### ####???????????????? | | ??###############??########## ####???????????????? | | ???##############??########## ####???????????????? | | ???????????????????########## ####???????????????? | | ???????????????????########## ####???????????????? | | ???????????????????????????## ####???????????????? | | ???????????????????????????## ########## ????????? | | ????????????????????????##### ########## #???????? | | ????????????????????????##### ########## #???????? | | ???????????????????????###### ########## #???????? | | ???????????????????????###### ### ## ### #???????? | | ???????????????????????####"" "" "" "???????? | | ########################### " " " "???????? | | ########################### R R ???????? | | ########################### R R ????????? | | ########################### Y ????????? | | Y ???????? | | =% u ???????? | | %%! !% %h% %% % ??????? | | %! k ==% %@%/%% ??????? | | % A % % k%R /% % t R ??????? | | ########################;##BB ??????? | | ####################### "BB ??????? | | ######################### # % #?????? | | ######################### # #?????? | | ???????????????????######## #?????? | | ?????????????????????###########T#"""#######?????? | | ???????????????????????########### < #######?????? | | ????????????????????????####################?????? | | | | | | | | | | | | | | | | | | | | | | | | | | | | | | | +----------------------------------------------------+ Best States ------------- Heat Dissipation 40 Energy Generation 19 Energy Capacity 315 Matter Stores 300 Matter Capacity 300 Sight Range 16 Terrain Scan Density 10 Armor Coverage 225 Weapon Shielding 66 Evasion (%) 55 Targeting Accuracy 16 Melee Accuracy 13 Recoil Reduction 2 Offensive Hacking 12 Item Schematics ----------------- None Robot Schematics ------------------ None Fabricated ------------ Nothing Repaired ---------- Nothing Alien Tech Used ----------------- None Achievements -------------- None Challenges ------------ None Game ------ Seed TechSalvagingAutobeam Manual? 1 Play Time 00:28:01 Cumulative 239.1 hours Start 2025.09.19 @ 15:45:46 End 2025.09.19 @ 16:18:10 Sessions 1 Manual Loads 0 Difficulty Rogue Special Mode None Game No. 214 Rogue 214 Adventurer 0 Explorer 0 Win Type - Total 13 Types 7/0/2/2/1/0/0/0/0/1 Lore% 93 Gallery% 86 Achievement% 75 Wizard Run 0 Options --------- Layout 1 ASCII 0 Keyboard 0 Movement Numpad Keybinds 0 Fullscreen 1 Font 24/Proggy Map View 50x35 Zoom Use 0% Tactical HUD 0 Map Filters NONE Filters NONE Steam 1 RUN: d337905a-062c-42b9-a240-99000242240d